bitfinex/quotes_BTCUSD_20241120
["timestamp","ask_amount","ask_price","bid_price","bid_amount"]
[1732081654060,0.0467,92288.0,92287.0,0.110357]
[1732081654496,0.04893018,92288.0,92287.0,0.110357]
[1732081654698,0.04893018,92288.0,92287.0,0.108357]
[1732081655802,0.04893018,92288.0,92287.0,0.110357]
[1732081657061,0.04893018,92288.0,92287.0,0.108357]
[1732081657262,0.04893018,92288.0,92287.0,0.1517014]
[1732081657679,0.04893018,92288.0,92287.0,0.1537014]
[1732081658459,0.04893018,92288.0,92287.0,0.1517014]
[1732081660128,0.04893018,92288.0,92287.0,0.1537014]
[1732081660379,0.04893018,92288.0,92287.0,0.1517014]
[1732081660488,0.12673018,92288.0,92287.0,0.1517014]
[1732081660696,0.12673018,92288.0,92287.0,0.19546298]
[1732081664274,0.12673018,92288.0,92287.0,0.19746298]
[1732081665541,0.04893018,92288.0,92287.0,0.19746298]
[1732081665972,0.0467,92288.0,92287.0,0.19546298]
[1732081666622,0.0467,92288.0,92287.0,0.19746298]
[1732081667250,0.0484086,92288.0,92287.0,0.19746298]
[1732081667678,0.0484086,92288.0,92287.0,0.19546298]
[1732081669002,0.0017086,92288.0,92287.0,0.19546298]
[1732081669629,0.0017086,92288.0,92287.0,0.19746298]
[1732081670394,0.0017086,92288.0,92287.0,0.19546298]
[1732081670602,0.0017086,92288.0,92287.0,0.19746298]
[1732081672088,0.0017086,92288.0,92287.0,0.29746298]
[1732081673798,0.0017086,92288.0,92287.0,0.29546298]
[1732081673970,0.0017086,92288.0,92287.0,0.29746298]
[1732081677468,0.0017086,92288.0,92287.0,0.32046298]
[1732081680257,0.0017086,92288.0,92287.0,0.31846298]
[1732081680716,0.0017086,92288.0,92287.0,0.32046298]
[1732081681141,0.0017086,92288.0,92287.0,0.31846298]
[1732081681353,0.0017086,92288.0,92287.0,0.32046298]
[1732081683524,0.0017086,92288.0,92287.0,0.40116298]
[1732081684185,0.0017086,92288.0,92287.0,0.86547475]
[1732081686457,0.0014408,92288.0,92287.0,0.8657396]
[1732081686708,0.0495549,92304.0,92303.0,0.108338]
[1732081686934,0.0008549,92304.0,92303.0,0.13413224]
[1732081687161,0.00299985,92304.0,92303.0,0.58876485]
[1732081687372,9e-07,92304.0,92303.0,0.6978274]
[1732081687646,9e-07,92304.0,92303.0,0.7411718]
[1732081688069,9e-07,92304.0,92303.0,0.7391718]
[1732081688307,9e-07,92304.0,92303.0,0.7411718]
[1732081688986,9e-07,92304.0,92303.0,0.74105904]
[1732081690067,9e-07,92304.0,92303.0,0.78508773]
[1732081690721,0.0487,92318.0,92317.0,0.110322]
[1732081691378,0.0487,92318.0,92317.0,0.15327045]
[1732081694850,0.04864728,92318.0,92317.0,0.15327045]
[1732081696986,0.05082714,92318.0,92317.0,0.15327045]
[1732081698149,0.24038969,92318.0,92317.0,0.108322]
[1732081698378,0.23820983,92318.0,92317.0,0.1516664]
[1732081698624,0.24038969,92318.0,92317.0,0.1516664]
[1732081701181,0.24038969,92318.0,92317.0,0.1536664]
[1732081702044,0.24038969,92318.0,92317.0,0.1545208]
[1732081702288,0.24038969,92318.0,92317.0,0.03711728]
[1732081702501,0.24209849,92318.0,92317.0,0.108322]
[1732081702928,0.13303594,92318.0,92317.0,0.108322]
[1732081703913,0.08438866,92318.0,92317.0,0.108322]
[1732081704121,0.00388866,92318.0,92317.0,0.16127439]
[1732081704546,0.0017088,92318.0,92317.0,0.26127439]
[1732081705619,0.0017088,92318.0,92317.0,0.35740286]
[1732081705828,0.0017088,92318.0,92317.0,0.26127439]
[1732081706036,0.0017088,92318.0,92317.0,0.28427439]
[1732081706282,0.0017088,92318.0,92317.0,0.38040153]
[1732081706480,0.0017088,92318.0,92317.0,0.28427439]
[1732081706699,0.0017088,92318.0,92317.0,0.38039568]
[1732081706971,0.0017088,92318.0,92317.0,0.28427439]
[1732081707421,0.0017088,92318.0,92317.0,0.38039568]
[1732081708088,0.0017088,92318.0,92317.0,0.28427439]
[1732081708544,0.0017088,92318.0,92317.0,0.26127439]
[1732081708786,0.0017088,92318.0,92317.0,0.40542758]
[1732081709002,0.0017088,92318.0,92317.0,0.26127439]
[1732081710585,0.0017088,92318.0,92317.0,0.35734437]
[1732081710822,0.0017088,92318.0,92317.0,0.26127439]
[1732081712113,0.0017088,92318.0,92317.0,0.40537984]
[1732081712326,0.0017088,92318.0,92317.0,0.50145014]
[1732081712533,0.0017088,92318.0,92317.0,0.61585581]
[1732081713172,0.0017088,92318.0,92317.0,0.51585581]
[1732081713425,0.0017088,92318.0,92317.0,0.61585581]
[1732081713654,0.0017088,92318.0,92317.0,0.72491836]
[1732081714112,0.0017088,92318.0,92317.0,0.96503962]
[1732081714546,0.0017088,92318.0,92317.0,0.72491836]
[1732081714829,0.0017088,92318.0,92317.0,0.91703332]
[1732081715044,0.0017088,92318.0,92317.0,0.72491836]
[1732081715917,0.0017088,92318.0,92317.0,0.96504823]
[1732081716127,0.0017088,92318.0,92317.0,1.00834123]
[1732081716333,0.0017088,92318.0,92317.0,0.79121136]
[1732081717181,0.0008548,92321.0,92320.0,0.231318]
[1732081717413,0.0008548,92321.0,92320.0,0.69496197]
[1732081717850,8e-07,92321.0,92320.0,0.69496197]
[1732081718060,0.00010984,92351.0,92333.0,0.208303]
[1732081718274,0.0483,92348.0,92333.0,0.58906644]
[1732081718510,0.0483,92348.0,92333.0,0.73227929]
[1732081719351,0.0483,92348.0,92333.0,0.58827472]
[1732081719559,0.0483,92348.0,92333.0,0.73197954]
[1732081719994,4e-07,92335.0,92334.0,0.231302]
[1732081720223,4e-07,92335.0,92334.0,0.72222667]
[1732081720668,4e-07,92335.0,92334.0,0.72422667]
[1732081721320,4e-07,92335.0,92334.0,1.01227826]
[1732081721533,4e-07,92335.0,92334.0,0.72422667]
[1732081721736,4e-07,92335.0,92334.0,0.72222667]
[1732081727255,0.0839545,92353.0,92352.0,0.108281]
[1732081727694,0.08616366,92353.0,92352.0,0.108281]
[1732081729226,0.13176366,92353.0,92352.0,0.108281]
[1732081730363,0.13176366,92353.0,92352.0,0.15303211]
[1732081733358,0.13176366,92353.0,92351.0,0.1]
[1732081733564,0.13176366,92353.0,92352.0,0.108281]
[1732081736897,0.11212621,92353.0,92351.0,0.108282]
[1732081737113,0.24066965,92352.0,92351.0,0.108282]
[1732081737331,0.23796255,92352.0,92351.0,0.13643396]
[1732081737547,0.24019707,92352.0,92351.0,0.13643396]
[1732081737980,0.24019707,92352.0,92351.0,0.02815196]
[1732081738211,0.24019707,92352.0,92350.0,0.108283]
[1732081738212,0.15689707,92352.0,92350.0,0.108283]
[1732081738424,0.13160716,92351.0,92350.0,0.108283]
[1732081738637,0.0833,92347.0,92332.0,0.108304]
[1732081738859,0.0833,92347.0,92322.0,0.19159985]
[1732081738860,0.0833,92347.0,92346.0,0.108288]
[1732081739068,0.0833,92347.0,92334.0,0.0017086]
[1732081739069,0.0833,92347.0,92343.0,0.108291]
[1732081739290,0.0833,92347.0,92344.0,0.108289]
[1732081739291,0.0456,92346.0,92344.0,0.108289]
[1732081739532,0.0456,92346.0,92345.0,0.0324875]
[1732081739739,0.23796255,92346.0,92345.0,0.0324875]
[1732081741049,0.23796255,92346.0,92345.0,0.1407765]
[1732081741264,0.23796255,92346.0,92345.0,0.108289]
[1732081742409,0.24019044,92346.0,92345.0,0.108289]
[1732081747363,0.13112789,92346.0,92345.0,0.108289]
[1732081750380,0.13112789,92346.0,92345.0,0.1099972]
[1732081750790,0.13112789,92346.0,92345.0,0.15781258]
[1732081752340,0.24019044,92346.0,92345.0,0.04952358]
[1732081752564,0.35847844,92346.0,92345.0,0.0017082]
[1732081753505,0.13112789,92346.0,92345.0,0.1099972]
[1732081753730,0.13112789,92346.0,92345.0,0.18965462]
[1732081753954,0.13112789,92346.0,92345.0,0.23824432]
[1732081754150,0.1289,92346.0,92345.0,0.23824432]
[1732081754611,0.04774733,92346.0,92345.0,0.23824432]
[1732081754860,0.0480545,92353.0,92345.0,0.41790174]
[1732081755065,0.0008545,92353.0,92352.0,0.26759584]
[1732081755264,0.0008545,92353.0,92352.0,0.18793842]
[1732081757087,0.0008545,92353.0,92352.0,0.26759584]
[1732081757310,0.0008545,92353.0,92352.0,0.31618554]
[1732081758813,0.0008545,92353.0,92352.0,0.23652812]
[1732081759249,0.0480545,92353.0,92352.0,0.1568707]
[1732081759468,0.0480545,92353.0,92352.0,0.23652812]
[1732081759685,0.05020627,92353.0,92352.0,0.23652812]
[1732081760113,0.0480545,92353.0,92352.0,0.23652812]
[1732081760334,0.05020627,92353.0,92352.0,0.23652812]
[1732081760845,0.05020627,92353.0,92352.0,0.1568707]
[1732081761265,0.05020627,92353.0,92352.0,0.20010124]
[1732081763626,0.0480545,92353.0,92352.0,0.20010124]
[1732081768684,0.0008545,92353.0,92352.0,0.20010124]
[1732081769114,0.0008545,92353.0,92352.0,0.20089292]
[1732081769326,0.00300627,92353.0,92352.0,0.20089292]
[1732081769532,0.0008545,92353.0,92352.0,0.29697968]
[1732081769740,0.0008545,92353.0,92352.0,0.296188]
[1732081770600,0.0008545,92353.0,92352.0,0.29619218]
[1732081771259,0.0008545,92353.0,92352.0,0.41919218]
[1732081771471,0.04320472,92359.0,92352.0,0.31091418]
[1732081771684,0.04320472,92359.0,92358.0,0.108274]
[1732081775675,0.04320472,92359.0,92358.0,0.1099822]
[1732081775892,0.04405882,92359.0,92358.0,0.1099822]
[1732081776124,0.04405882,92359.0,92358.0,0.1585719]
[1732081777316,0.0008541,92359.0,92358.0,0.1585719]
[1732081779401,0.0459541,92359.0,92358.0,0.1585719]
[1732081781892,0.0459541,92359.0,92358.0,0.28236326]
[1732081781893,0.0008541,92359.0,92358.0,0.28236326]
[1732081782102,0.0008541,92359.0,92358.0,0.47372459]
[1732081782310,0.0008541,92359.0,92358.0,0.63616758]
[1732081782519,0.0008541,92359.0,92358.0,0.87622986]
[1732081782724,0.0008541,92359.0,92358.0,1.03543962]
[1732081783869,1e-07,92359.0,92358.0,1.30130705]
[1732081784085,0.0008549,92373.0,92361.0,0.35737]
[1732081784086,9e-07,92362.0,92361.0,0.35737]
[1732081784302,9e-07,92362.0,92361.0,0.82102823]
[1732081784503,9e-07,92362.0,92361.0,1.10881362]
[1732081784922,9e-07,92362.0,92361.0,1.1083092]
[1732081785128,9e-07,92362.0,92361.0,0.86912233]
[1732081785544,9e-07,92362.0,92361.0,1.15679304]
[1732081786460,9e-07,92362.0,92361.0,0.86912233]
[1732081786890,9e-07,92362.0,92361.0,1.15679304]
[1732081787306,9e-07,92362.0,92361.0,0.86912233]
[1732081788839,9e-07,92362.0,92361.0,1.12062397]
[1732081790483,9e-07,92362.0,92361.0,1.12262397]
[1732081790696,0.0008549,92373.0,92364.0,0.002]
[1732081790913,0.0008549,92373.0,92372.0,0.48275864]
[1732081791148,0.0008549,92373.0,92372.0,0.94592127]
[1732081792439,0.0008549,92373.0,92372.0,1.1375592]
[1732081792672,9e-07,92373.0,92372.0,0.94592127]
[1732081792919,9e-07,92373.0,92372.0,0.99451097]
[1732081793161,9e-07,92373.0,92372.0,1.12061097]
[1732081793419,0.0004,92399.0,92378.0,0.35700082]
[1732081793420,9e-07,92379.0,92378.0,0.35700082]
[1732081793651,9e-07,92379.0,92378.0,0.5783271]
[1732081794102,9e-07,92379.0,92378.0,0.48252503]
[1732081794766,9e-07,92379.0,92378.0,0.97973544]
[1732081795464,9e-07,92379.0,92378.0,0.48252503]
[1732081796361,9e-07,92379.0,92378.0,0.62622814]
[1732081796591,9e-07,92379.0,92378.0,0.48252503]
[1732081799452,0.0008549,92379.0,92378.0,0.5782245]
[1732081800130,0.0008549,92379.0,92378.0,0.48252503]
[1732081800356,0.0008549,92379.0,92378.0,0.5782245]
[1732081800586,0.0008549,92379.0,92378.0,0.48252503]
[1732081802425,0.0008549,92379.0,92378.0,0.37346248]
[1732081807126,0.0008549,92379.0,92378.0,0.24771166]
[1732081807355,0.0008549,92379.0,92378.0,0.37346248]
[1732081808754,0.0008549,92379.0,92378.0,0.32727945]
[1732081810298,0.0004,92399.0,92378.0,0.484642]
[1732081810541,0.0371004,92409.0,92408.0,0.36735058]
[1732081811005,0.03910217,92409.0,92408.0,0.36735058]
[1732081811248,0.0371004,92409.0,92408.0,0.38381224]
[1732081811461,0.03910217,92409.0,92408.0,0.38381224]
[1732081811669,0.0371004,92409.0,92408.0,0.38381224]
[1732081812365,0.0819,92411.0,92408.0,0.38381224]
[1732081812596,0.0819,92411.0,92410.0,0.208213]
[1732081812812,0.0819,92411.0,92410.0,0.33388408]
[1732081813504,0.0017076,92427.0,92410.0,0.33388408]
[1732081813505,0.0467,92422.0,92418.0,0.208204]
[1732081813732,0.1286,92422.0,92418.0,0.33387508]
[1732081813950,0.00240256,92419.0,92418.0,0.35033674]
[1732081814164,0.0004,92419.0,92418.0,0.35033674]
[1732081814381,0.00241677,92419.0,92418.0,0.35033674]
[1732081814611,0.0004,92419.0,92418.0,0.35033674]
[1732081814850,0.00241677,92419.0,92418.0,0.35033674]
[1732081815056,0.0004,92419.0,92418.0,0.35033674]
[1732081815290,0.00241677,92419.0,92418.0,0.37333674]
[1732081815503,0.0004,92419.0,92418.0,0.37333674]
[1732081819362,0.0004,92419.0,92418.0,0.41788572]
[1732081820025,0.0017076,92427.0,92418.0,0.41788572]
[1732081820026,0.0017076,92427.0,92418.0,0.65261935]
[1732081820229,0.0017076,92427.0,92426.0,0.48253616]
[1732081820444,0.0017076,92427.0,92426.0,0.35686508]
[1732081823714,0.0017076,92427.0,92426.0,0.48253616]
[1732081825319,0.0008542,92452.0,92451.0,0.1]
[1732081825536,0.0008542,92452.0,92451.0,0.208165]
[1732081827177,0.0008542,92452.0,92451.0,0.2531079]
[1732081831001,0.0008542,92452.0,92451.0,0.208165]
[1732081832778,0.0484542,92452.0,92451.0,0.208165]
[1732081833221,0.1249542,92452.0,92451.0,0.208165]
[1732081833434,0.23401675,92452.0,92451.0,0.208165]
[1732081833650,0.23746359,92452.0,92451.0,0.208165]
[1732081834375,0.12840104,92452.0,92451.0,0.208165]
[1732081838735,0.12840104,92452.0,92451.0,0.28764155]
[1732081840858,0.12840104,92452.0,92451.0,0.208165]
[1732081842873,0.12840104,92452.0,92451.0,0.108165]
[1732081843088,0.13110527,92452.0,92451.0,0.108165]
[1732081844148,0.12840104,92452.0,92451.0,0.108165]
[1732081852560,0.05190104,92452.0,92451.0,0.108165]
[1732081852768,0.0008542,92452.0,92451.0,0.108165]
[1732081852977,0.0008542,92452.0,92451.0,0.18764155]
[1732081855853,0.0008542,92452.0,92451.0,0.07947655]
[1732081856075,0.0008542,92452.0,92451.0,0.18764155]
[1732081856294,0.0008542,92452.0,92451.0,0.108165]
[1732081863138,0.01,92449.0,92448.0,0.1]
[1732081863363,0.01270433,92449.0,92448.0,0.208168]
[1732081863576,0.01,92447.0,92446.0,0.0017066]
[1732081863835,0.12508909,92447.0,92446.0,0.1098766]
[1732081864049,0.11238458,92447.0,92446.0,0.1098766]
[1732081864259,0.00332203,92447.0,92446.0,0.18935315]
[1732081864718,0.01,92450.0,92449.0,0.09735]
[1732081865404,0.01,92451.0,92450.0,0.097349]
[1732081865638,0.0008542,92452.0,92451.0,0.27682455]
[1732081868311,0.0008542,92452.0,92451.0,0.197348]
[1732081869199,0.0108542,92452.0,92451.0,0.197348]
[1732081869428,0.1417542,92452.0,92451.0,0.197348]
[1732081869862,0.14485986,92452.0,92451.0,0.197348]
[1732081870073,0.1417542,92452.0,92451.0,0.197348]
[1732081870951,0.1317542,92452.0,92451.0,0.197348]
[1732081871160,0.0495542,92452.0,92451.0,0.197348]
[1732081874297,0.0495542,92452.0,92451.0,0.29331711]
[1732081877680,0.0495942,92452.0,92451.0,0.29331711]
[1732081879418,0.0495942,92452.0,92451.0,0.197348]
[1732081879889,0.0008942,92452.0,92451.0,0.197348]
[1732081883433,0.0108942,92452.0,92451.0,0.197348]
[1732081884075,0.0108942,92452.0,92451.0,0.29337035]
[1732081884282,0.0108942,92452.0,92451.0,0.197348]
[1732081889225,0.11995675,92452.0,92451.0,0.1]
[1732081889447,0.0699,92451.0,92450.0,0.001709]
[1732081889707,0.18166696,92451.0,92450.0,0.099058]
[1732081889918,0.20500597,92451.0,92450.0,0.099058]
[1732081890127,0.18476959,92451.0,92450.0,0.099058]
[1732081890557,0.20500349,92451.0,92450.0,0.099058]
[1732081890974,0.28530349,92451.0,92450.0,0.001709]
[1732081891206,0.28259908,92451.0,92450.0,0.099058]
[1732081891437,0.07300263,92451.0,92450.0,0.099058]
[1732081891862,0.0699,92451.0,92450.0,0.099058]
[1732081894785,0.09323874,92451.0,92450.0,0.099058]
[1732081894991,0.20500555,92451.0,92450.0,0.099058]
[1732081895614,0.28530555,92451.0,92450.0,0.099058]
[1732081895828,0.28260129,92451.0,92450.0,0.099058]
[1732081896106,0.26236518,92451.0,92450.0,0.099058]
[1732081896333,0.28259977,92451.0,92450.0,0.099058]
[1732081896538,0.28259977,92451.0,92450.0,0.001709]
[1732081896964,0.28259977,92451.0,92450.0,0.099058]
[1732081897606,0.28259977,92451.0,92450.0,0.001709]
[1732081899327,0.39076477,92451.0,92450.0,0.001709]
[1732081899741,0.28259977,92451.0,92450.0,0.001709]
[1732081900605,0.28459977,92451.0,92450.0,0.001709]
[1732081901235,0.39276477,92451.0,92450.0,0.001709]
[1732081901879,0.39076477,92451.0,92450.0,0.001709]
[1732081902834,0.37053018,92451.0,92450.0,0.001709]
[1732081905541,0.37138468,92451.0,92450.0,0.001709]
[1732081905763,0.37338468,92451.0,92450.0,0.001709]
[1732081907415,0.26521968,92451.0,92450.0,0.001709]
[1732081908665,0.37338468,92451.0,92450.0,0.001709]
[1732081909662,0.37138468,92451.0,92450.0,0.001709]
[1732081909866,0.37338468,92451.0,92450.0,0.001709]
[1732081910901,0.37138468,92451.0,92450.0,0.001709]
[1732081912830,0.39361057,92451.0,92450.0,0.001709]
[1732081912982,0.39161057,92451.0,92450.0,0.001709]
[1732081913185,0.39361057,92451.0,92450.0,0.001709]
[1732081913596,0.20314557,92451.0,92450.0,0.001709]
[1732081913804,0.20585008,92451.0,92450.0,0.001709]
[1732081918413,0.20585909,92451.0,92450.0,0.001709]
[1732081918634,0.31402409,92451.0,92450.0,0.001709]
[1732081918858,0.31131958,92451.0,92450.0,0.001709]
[1732081919602,0.34370128,92451.0,92450.0,0.001709]
[1732081919823,0.31131958,92451.0,92450.0,0.001709]
[1732081920043,0.34370155,92451.0,92450.0,0.001709]
[1732081920742,0.35570155,92451.0,92450.0,0.001709]
[1732081920975,0.40221958,92451.0,92450.0,0.001709]
[1732081921217,0.41221958,92451.0,92450.0,0.001709]
[1732081922344,0.45596516,92451.0,92450.0,0.001709]
[1732081923043,0.41221958,92451.0,92450.0,0.001709]
[1732081923956,0.39198468,92451.0,92450.0,0.001709]
[1732081924185,0.41221022,92451.0,92450.0,0.001709]
[1732081927467,0.39198468,92451.0,92450.0,0.001709]
[1732081927686,0.28203441,92451.0,92450.0,0.001709]
[1732081927941,0.15323441,92451.0,92450.0,0.109875]
[1732081929192,0.13301968,92451.0,92450.0,0.109875]
[1732081929652,0.00395713,92451.0,92450.0,0.18935155]
[1732081930090,0.0008545,92451.0,92450.0,0.18935155]
[1732081931028,0.0008545,92451.0,92450.0,0.109875]
[1732081934955,0.0008545,92451.0,92450.0,0.28786013]
[1732081935171,0.0008545,92451.0,92450.0,0.45225079]
[1732081935380,0.0008545,92451.0,92450.0,0.50018869]
[1732081935819,0.0008545,92451.0,92450.0,0.83330945]
[1732081936028,0.0008545,92451.0,92450.0,0.50018869]
[1732081936272,0.0008545,92451.0,92450.0,0.24667255]
[1732081936502,7e-07,92452.0,92451.0,0.131165]
[1732081936709,7e-07,92452.0,92451.0,0.84169595]
[1732081936924,7e-07,92452.0,92451.0,0.65014686]
[1732081937525,0.0008542,92455.0,92451.0,0.65014686]
[1732081937757,0.0008542,92455.0,92454.0,0.28783755]
[1732081937888,0.0008542,92455.0,92454.0,0.3969001]
[1732081938091,0.0008542,92455.0,92454.0,0.72961941]
[1732081938530,0.0008542,92455.0,92454.0,0.71991903]
[1732081938753,0.0008542,92455.0,92454.0,0.95455025]
[1732081940122,0.0008542,92455.0,92454.0,1.14582611]
[1732081940535,4.495e-05,92482.0,92454.0,1.14582611]
[1732081940536,4.495e-05,92482.0,92458.0,0.314457]
[1732081940760,0.01,92478.0,92458.0,0.314457]
[1732081940995,0.01,92478.0,92458.0,0.39393355]
[1732081941326,0.01,92478.0,92458.0,0.41524118]
[1732081941327,0.00270343,92477.0,92458.0,0.41524118]
[1732081941549,0.02,92478.0,92458.0,0.41524118]
[1732081942306,0.02,92478.0,92458.0,0.24666515]
[1732081942523,0.02,92478.0,92458.0,0.26966515]
[1732081944305,0.02,92478.0,92458.0,0.36966515]
[1732081944505,0.02,92478.0,92458.0,0.4491417]
[1732081945140,0.0004,92479.0,92458.0,0.4491417]
[1732081945351,0.0004,92479.0,92458.0,0.5282417]
[1732081945352,0.02,92478.0,92458.0,0.5282417]
[1732081946027,0.01,92478.0,92458.0,0.5282417]
[1732081946234,0.02,92478.0,92458.0,0.5282417]
[1732081946888,0.01,92478.0,92458.0,0.5282417]
[1732081947198,0.02,92478.0,92458.0,0.5282417]
[1732081947842,0.01,92478.0,92458.0,0.63730425]
[1732081948653,0.0004,92479.0,92458.0,0.63730425]
[1732081949310,0.01,92477.0,92458.0,0.63730425]
[1732081949533,0.0004,92479.0,92458.0,0.63730425]
[1732081950833,0.01,92477.0,92458.0,0.63730425]
[1732081951694,0.0012545,92459.0,92458.0,0.63730425]
[1732081952345,0.0012545,92459.0,92458.0,0.44876515]
[1732081952577,0.0012545,92459.0,92458.0,0.43404118]
[1732081953523,0.0012545,92459.0,92458.0,0.35494118]
[1732081953963,0.0012545,92459.0,92458.0,0.33194118]
[1732081956511,0.0012545,92459.0,92458.0,0.54348028]
[1732081956713,0.0012545,92459.0,92458.0,0.46400373]
[1732081959535,0.0012545,92459.0,92458.0,0.25246463]
[1732081959745,0.0012545,92459.0,92458.0,0.33194118]
[1732081960828,0.0012545,92459.0,92458.0,0.46400373]
[1732081961044,0.0012545,92459.0,92458.0,0.59288028]
[1732081962140,0.0012545,92459.0,92458.0,0.51340373]
[1732081962345,0.0012545,92459.0,92458.0,0.59288028]
[1732081962920,0.0012545,92459.0,92458.0,0.51340373]
[1732081963122,0.0012545,92459.0,92458.0,0.51511273]
[1732081963591,0.0012545,92459.0,92458.0,0.59458928]
[1732081964289,0.0012545,92459.0,92458.0,0.51511273]
[1732081965190,0.0012545,92459.0,92458.0,0.46571273]
[1732081967801,0.0012545,92459.0,92458.0,0.38623618]
[1732081968015,0.0012545,92459.0,92458.0,0.46571273]
[1732081969140,0.0012545,92459.0,92458.0,0.54518928]
[1732081970159,0.0012545,92459.0,92458.0,0.46571273]
[1732081971048,0.0012545,92459.0,92458.0,0.54518928]
[1732081972249,0.0012545,92459.0,92458.0,0.38623618]
[1732081972593,0.0012545,92459.0,92458.0,0.46571273]
[1732081973564,0.0012545,92459.0,92458.0,0.56127299]
[1732081974659,0.0012545,92459.0,92458.0,0.46571273]
[1732081975554,0.0012545,92459.0,92458.0,0.79233527]
[1732081976554,0.0012545,92459.0,92458.0,0.98387414]
[1732081976755,0.0012545,92459.0,92458.0,0.68327272]
[1732081977126,0.0012545,92459.0,92458.0,0.50038615]
[1732081977343,0.0012545,92459.0,92458.0,0.82702933]
[1732081977549,0.0012545,92459.0,92458.0,0.68329567]
[1732081978410,0.0012545,92459.0,92458.0,0.60381912]
[1732081978617,0.0012545,92459.0,92458.0,0.6835447]
[1732081978829,0.0012545,92459.0,92458.0,0.6605447]
[1732081979498,0.0012545,92459.0,92458.0,0.85208357]
[1732081980603,0.0012545,92459.0,92458.0,0.6605447]
[1732081982582,0.03136973,92462.0,92461.0,0.097338]
[1732081982758,0.03136973,92462.0,92461.0,0.197338]
[1732081982989,0.03136973,92462.0,92461.0,0.52423252]
[1732081983660,0.02043654,92462.0,92461.0,0.52423252]
[1732081984486,0.01,92468.0,92462.0,0.1]
[1732081984750,0.01,92468.0,92467.0,0.27680855]
[1732081985178,0.0808,92469.0,92468.0,0.19733]
[1732081985413,0.0008542,92472.0,92471.0,0.097327]
[1732081985639,0.0008542,92472.0,92471.0,0.17680355]
[1732081985866,0.0008542,92472.0,92471.0,0.27279183]
[1732081986502,0.0459542,92472.0,92471.0,0.27279183]
[1732081986793,0.0459542,92472.0,92471.0,0.17680355]
[1732081988105,0.0459542,92472.0,92471.0,0.097327]
[1732081988328,0.0459542,92472.0,92471.0,0.17680355]
[1732081989024,0.0459542,92472.0,92471.0,0.22011997]
[1732081991020,0.0459542,92472.0,92471.0,0.14064342]
[1732081991021,0.1467542,92472.0,92471.0,0.14064342]
[1732081991465,0.14965268,92472.0,92471.0,0.14064342]
[1732081993961,0.1467542,92472.0,92471.0,0.14064342]
[1732081995053,0.14965268,92472.0,92471.0,0.14064342]
[1732081996645,0.14924228,92472.0,92471.0,0.14064342]
[1732081997528,0.14924228,92472.0,92471.0,0.1409294]
[1732081998187,0.14924228,92472.0,92471.0,0.00028598]
[1732081998409,0.26100844,92472.0,92471.0,0.00028598]
[1732081998652,0.25830483,92472.0,92471.0,0.00028598]
[1732081999108,0.25830483,92472.0,92471.0,0.09761298]
[1732081999324,0.25830483,92472.0,92471.0,0.00028598]
[1732082000875,0.25830483,92472.0,92471.0,0.09761298]
[1732082001097,0.13924228,92472.0,92471.0,0.09761298]
[1732082001325,0.14924228,92472.0,92471.0,0.09761298]
[1732082001556,0.13924228,92472.0,92471.0,0.09761298]
[1732082001781,0.14924228,92472.0,92471.0,0.09761298]
[1732082002499,0.06844228,92472.0,92471.0,0.09761298]
[1732082002746,0.01334228,92472.0,92471.0,0.09761298]
[1732082002995,0.0204438,92472.0,92471.0,0.09761298]
[1732082003178,0.02333875,92472.0,92471.0,0.09761298]
[1732082003711,0.0204438,92472.0,92471.0,0.09761298]
[1732082004797,0.02333875,92472.0,92471.0,0.09761298]
[1732082006702,0.01333875,92472.0,92471.0,0.09761298]
[1732082007140,0.02333875,92472.0,92471.0,0.09761298]
[1732082007363,0.0204438,92472.0,92471.0,0.09761298]
[1732082007843,0.02333875,92472.0,92471.0,0.09761298]
[1732082009392,0.0204438,92472.0,92471.0,0.09932218]
[1732082011697,0.02004374,92472.0,92471.0,0.09932218]
[1732082012596,0.06994374,92472.0,92471.0,0.09932217]
[1732082012798,0.25480629,92472.0,92471.0,0.00199517]
[1732082013013,0.36584225,92472.0,92471.0,0.00199517]
[1732082013242,0.39607914,92472.0,92471.0,0.00199517]
[1732082013454,0.43045224,92472.0,92471.0,0.00199517]
[1732082014789,0.44045224,92472.0,92471.0,0.00199517]
[1732082015504,0.40807914,92472.0,92471.0,0.00199517]
[1732082015964,0.38784225,92472.0,92471.0,0.00199517]
[1732082016215,0.40805729,92472.0,92471.0,0.00199517]
[1732082016415,0.44040134,92472.0,92471.0,0.00199517]
[1732082018358,0.40805729,92472.0,92471.0,0.00199517]
[1732082019078,0.40605729,92472.0,92471.0,0.00199517]
[1732082019307,0.40805729,92472.0,92471.0,0.00199517]
[1732082019947,0.38805729,92472.0,92471.0,0.00199517]
[1732082020170,0.39805729,92472.0,92471.0,0.00199517]
[1732082020387,0.38805729,92472.0,92471.0,0.00199517]
[1732082020618,0.40805729,92472.0,92471.0,0.00199517]
[1732082026169,0.38784225,92472.0,92471.0,0.00199517]
[1732082026420,0.40802621,92472.0,92471.0,0.00199517]
[1732082028212,0.29788621,92472.0,92471.0,0.00199517]
[1732082029077,0.26770225,92472.0,92471.0,0.00199517]
[1732082029309,0.28788423,92472.0,92471.0,0.11013717]
[1732082029537,0.27788423,92472.0,92471.0,0.11013717]
[1732082029753,0.25770225,92472.0,92471.0,0.11013717]
[1732082030694,0.13200225,92472.0,92471.0,0.11013717]
[1732082032224,0.13470597,92472.0,92471.0,0.00199517]
[1732082032446,0.13181001,92472.0,92471.0,0.11013717]
[1732082032654,0.15477483,92472.0,92471.0,0.11013717]
[1732082033095,0.15477459,92472.0,92471.0,0.11013717]
[1732082033945,0.15477713,92472.0,92471.0,0.11013717]
[1732082034180,0.15477713,92472.0,92471.0,0.00199517]
[1732082034830,0.26291713,92472.0,92471.0,0.00199517]
[1732082035053,0.26021341,92472.0,92471.0,0.00199517]
[1732082036672,0.26021341,92472.0,92456.0,0.108158]
[1732082036673,0.150156,92459.0,92446.0,0.0017066]
[1732082036883,0.4614951,92459.0,92446.0,0.0017066]
[1732082037077,0.48447266,92459.0,92446.0,0.0017066]
[1732082038445,0.48247266,92459.0,92446.0,0.0017066]
[1732082038676,0.48447266,92459.0,92446.0,0.0017066]
[1732082039086,0.40499611,92459.0,92446.0,0.0017066]
[1732082039323,0.48447266,92459.0,92446.0,0.0017066]
[1732082039762,0.48447003,92459.0,92446.0,0.0017066]
[1732082041975,0.46427318,92459.0,92446.0,0.0017066]
[1732082042204,0.48447471,92459.0,92446.0,0.0017066]
[1732082042889,0.48447471,92459.0,92446.0,0.1098766]
[1732082044882,0.48247471,92459.0,92446.0,0.0017066]
[1732082045107,0.48447471,92459.0,92446.0,0.0017066]
[1732082050387,0.50747471,92459.0,92446.0,0.0017066]
[1732082055163,0.50747471,92459.0,92458.0,0.002709]